bitfinex-derivatives/quotes_SOLF0:USTF0_20250505
["timestamp","ask_amount","ask_price","bid_price","bid_amount"]
[1746464446307,6.8965,145.03,145.0,6.8975]
[1746464447914,11.49965995,145.02,145.0,6.8975]
[1746464448113,4.60295995,145.01,145.0,6.8975]
[1746464448803,4.60295995,145.01,144.99,31.1178]
[1746464449606,4.60415063,145.0,144.99,31.1178]
[1746464450013,11.50165063,145.0,144.99,24.22]
[1746464450310,4.60415063,145.0,144.96,24.22]
[1746464450507,6.8986,144.98,144.96,24.22]
[1746464451014,6.8989,144.98,144.96,24.22]
[1746464451311,28.2018,145.03,144.96,24.22]
[1746464451611,6.8978,145.0,144.96,31.1194]
[1746464451814,4.60746037,144.99,144.96,31.1194]
[1746464452015,4.60746037,144.98,144.96,24.22]
[1746464452315,28.2018,145.03,144.96,24.22]
[1746464452516,4.60701979,145.02,144.96,24.22]
[1746464452813,4.60701979,145.01,144.99,6.8978]
[1746464453013,4.60701979,145.0,144.96,24.22]
[1746464453314,6.8969,145.02,144.99,6.8978]
[1746464453514,4.59987045,145.01,144.99,6.8978]
[1746464453813,4.59987045,145.0,144.99,6.8978]
[1746464454015,4.59987045,145.0,144.98,6.8983]
[1746464454315,4.59987045,144.99,144.98,6.8983]
[1746464455111,10.8781,145.03,145.0,6.8973]
[1746464455306,4.60278916,145.02,145.0,6.8973]
[1746464455511,4.60278916,145.01,145.0,6.8973]
[1746464458824,6.8967,145.02,145.0,6.8973]
[1746464459022,4.60701358,145.01,145.0,6.8973]
[1746464460919,6.8964,145.03,145.0,6.8973]
[1746464461220,4.60047306,145.02,145.0,6.8973]
[1746464461420,4.60047306,145.01,145.0,6.8973]
[1746464461925,2.1074,145.08,145.04,6.8954]
[1746464462426,6.8946,145.07,145.04,6.8954]
[1746464462728,2.1074,145.08,145.04,6.8954]
[1746464463221,6.8949,145.06,145.04,6.8954]
[1746464463723,2.1074,145.08,145.0,24.22]
[1746464463926,13.72622478,145.08,144.99,24.22]
[1746464464828,13.72622478,145.08,144.99,31.1177]
[1746464466623,27.51402478,145.08,144.99,24.22]
[1746464467219,11.61882478,145.05,144.97,8.9205]
[1746464467420,26.2403,145.04,144.97,8.9205]
[1746464467621,6.8979,145.0,144.97,8.9205]
[1746464467827,6.8979,145.0,144.98,6.8983]
[1746464468127,26.2403,145.04,144.97,2.0218]
[1746464468320,6.8972,145.01,144.99,6.8979]
[1746464469023,6.8968,145.02,144.99,6.8979]
[1746464469328,26.2403,145.04,144.99,6.8979]
[1746464470022,26.2403,145.04,144.98,6.8983]
[1746464470531,26.2403,145.04,144.97,2.0218]
[1746464470935,2.0203,145.04,144.97,2.0218]
[1746464471124,6.8966,145.02,144.99,6.8978]
[1746464471835,6.8971,145.01,144.99,6.8978]
[1746464472431,2.0203,145.04,145.0,6.8973]
[1746464472644,24.22,145.07,144.97,13.64062478]
[1746464472830,24.2,145.09,144.98,28.2791]
[1746464473027,6.8949,145.06,145.04,6.8953]
[1746464473737,4.51159322,145.05,145.04,6.8953]
[1746464474645,4.51084948,145.05,145.04,6.8953]
[1746464476756,4.51084948,145.05,145.03,6.8959]
[1746464477046,4.51084948,145.04,145.03,6.8959]
[1746464478249,4.51084948,145.04,145.02,24.2]
[1746464478449,4.51084948,145.03,145.02,24.2]
[1746464480249,4.51084948,145.03,145.02,31.0966]
[1746464481957,6.8948,145.06,145.02,24.2]
[1746464482154,4.50635814,145.05,145.03,6.8958]
[1746464482359,4.50635814,145.04,145.02,24.2]
[1746464482559,4.50635814,145.03,145.02,24.2]
[1746464483358,4.50635814,145.03,145.02,31.0966]
[1746464485861,6.8948,145.06,145.03,6.8959]
[1746464486061,4.5119811,145.05,145.03,6.8959]
[1746464486359,4.5119811,145.04,145.03,6.8959]
[1746464491365,6.8949,145.06,145.04,6.8955]
[1746464491662,4.51711587,145.05,145.04,6.8955]
[1746464493265,4.51602671,145.05,145.04,6.8955]
[1746464495261,4.51477057,145.05,145.04,6.8955]
[1746464496968,35.81882478,145.11,145.06,6.8946]
[1746464497170,4.51362427,145.1,145.06,6.8946]
[1746464497364,11.40732427,145.09,145.06,6.8946]
[1746464497565,4.51362427,145.08,145.06,6.8946]
[1746464497865,4.51362427,145.07,145.06,6.8946]
[1746464498770,6.8938,145.08,145.06,6.8946]
[1746464498969,4.50637571,145.07,145.06,6.8946]
[1746464499166,4.50637571,145.07,145.05,6.8949]
[1746464499366,4.50637571,145.06,145.05,6.8949]
[1746464499771,6.8938,145.08,145.05,6.8949]
[1746464500267,6.8938,145.08,145.06,6.8946]
[1746464500466,4.50900505,145.07,145.03,11.61882478]
[1746464500770,4.50900505,145.07,145.06,6.8947]
[1746464500970,6.894,145.08,145.03,17.75452478]
[1746464501570,4.51001084,145.07,145.02,24.2]
[1746464501771,4.51001084,145.07,145.03,6.8959]
[1746464501971,4.51001084,145.07,145.02,24.2]
[1746464502271,6.8961,145.03,145.01,24.2]
[1746464502471,24.2,145.08,145.01,24.2]
[1746464502472,4.51001084,145.02,145.01,24.2]
[1746464502971,4.51001084,145.02,145.01,31.0971]
[1746464504271,4.51756836,145.02,145.01,31.0971]
[1746464506775,4.51908125,145.02,145.01,31.0971]
[1746464507076,4.51908125,145.02,145.01,24.2]
[1746464508079,4.51908125,145.02,145.01,31.0971]
[1746464508571,4.51967291,145.02,145.01,31.0971]
[1746464511273,4.51967291,145.02,144.98,4.0446]
[1746464511481,4.51967291,145.01,144.95,546.14]
[1746464511671,4.51967291,145.0,144.94,26.2]
[1746464511871,11.61882478,145.02,144.94,26.2]
[1746464512071,2.1196,145.01,144.94,2.0]
[1746464512277,6.8999,144.95,144.94,2.0]
[1746464514170,28.3126,145.0,144.94,2.0]
[1746464514371,4.52101781,144.99,144.94,2.0]
[1746464514673,6.8991,144.97,144.94,2.0]
[1746464515275,6.8991,144.97,144.94,8.9002]
[1746464515682,6.8996,144.96,144.94,8.9002]
[1746464515871,4.54465862,144.95,144.94,2.0]
[1746464516067,28.3126,145.0,144.94,2.0]
[1746464516275,6.8999,144.95,144.94,2.0]
[1746464517273,28.3126,145.0,144.94,2.0]
[1746464517670,28.3126,145.0,144.94,8.9001]
[1746464517872,6.8989,144.98,144.94,2.0]
[1746464518076,6.8989,144.98,144.95,6.8998]
[1746464518672,26.3409,145.0,144.97,6.8986]
[1746464519081,26.3409,145.0,144.94,2.0]
[1746464519979,6.8999,144.95,144.94,2.0]
[1746464520179,11.43965923,144.95,144.94,2.0]
[1746464520479,6.8999,144.95,144.94,2.0]
[1746464524474,11.43306289,144.95,144.94,2.0]
[1746464524677,6.8999,144.95,144.94,2.0]
[1746464525580,24.2,144.96,144.92,1.0]
[1746464525774,2.0237,144.94,144.91,1.0]
[1746464526283,6.9013,144.92,144.91,1.0]
[1746464526784,6.9032,144.89,144.85,24.2]
[1746464526983,2.0237,144.94,144.82,24.2]
[1746464527183,11.61882478,144.92,144.82,24.2]
[1746464527385,6.9048,144.85,144.82,24.2]
[1746464527783,24.2,144.91,144.84,6.9052]
[1746464527984,24.2,144.91,144.82,24.2]
[1746464528284,24.2,144.91,144.84,6.9048]
[1746464528486,6.904,144.87,144.84,6.9048]
[1746464528880,24.2,144.91,144.82,24.2]
[1746464529084,6.903,144.89,144.82,24.2]
[1746464529581,6.9023,144.9,144.88,6.9032]
[1746464529788,2.0237,144.94,144.86,35.83882478]
[1746464529986,2.0237,144.94,144.87,24.22]
[1746464530187,8.9245,144.94,144.91,6.9016]
[1746464530489,8.9245,144.94,144.87,24.22]
[1746464530784,8.9245,144.94,144.91,6.9016]
[1746464530984,6.9008,144.94,144.91,6.9016]
[1746464531286,6.901,144.93,144.9,6.9021]
[1746464531687,26.2852,144.95,144.87,24.22]
[1746464531880,6.9007,144.94,144.91,6.9015]
[1746464533390,6.9007,144.94,144.92,6.9013]
[1746464533585,6.9007,144.94,144.87,24.22]
[1746464533987,6.9007,144.94,144.91,6.9015]
[1746464534192,24.22,144.97,144.87,24.22]
[1746464534581,24.22,144.97,144.89,6.9025]
[1746464534780,24.22,144.97,144.87,24.22]
[1746464535088,18.60128779,144.95,144.84,24.3]
[1746464535287,6.9042,144.86,144.84,24.3]
[1746464535487,6.9042,144.86,144.83,6.9052]
[1746464535689,24.3,144.89,144.81,24.3]
[1746464536086,24.3,144.89,144.83,6.9052]
[1746464536288,6.9044,144.86,144.81,24.3]
[1746464536585,6.9044,144.86,144.83,6.9053]
[1746464538293,6.9047,144.85,144.83,6.9053]
[1746464538487,24.3,144.89,144.83,6.9053]
[1746464538791,6.9049,144.85,144.82,6.9059]
[1746464539182,4.1997,144.88,144.81,6.9064]
[1746464539384,6.9052,144.84,144.81,6.9064]
[1746464539893,6.9052,144.84,144.82,6.906]
[1746464540085,4.1997,144.88,144.8,24.3]
[1746464540487,4.1997,144.88,144.83,6.9053]
[1746464540690,6.9044,144.86,144.83,6.9053]
[1746464541194,6.9048,144.85,144.82,6.9059]
[1746464542093,6.9052,144.84,144.82,6.9059]
[1746464542288,4.1997,144.88,144.83,6.9056]
[1746464542792,6.9045,144.86,144.83,6.9056]
[1746464542992,6.9045,144.86,144.84,6.9051]
[1746464543194,6.9037,144.87,144.8,24.3]
[1746464543589,6.9037,144.87,144.84,6.9047]
[1746464543794,6.9033,144.88,144.8,24.3]
[1746464544184,6.9033,144.88,144.85,6.9045]
[1746464544383,6.9038,144.87,144.85,6.9045]
[1746464544584,6.9038,144.87,144.85,6.9046]
[1746464544892,24.3,144.89,144.8,24.3]
[1746464545196,6.9042,144.86,144.8,24.3]
[1746464545392,24.3,144.89,144.84,6.9051]
[1746464545591,6.904,144.87,144.84,6.9051]
[1746464546395,6.9042,144.86,144.84,6.9051]
[1746464546594,6.9042,144.86,144.83,6.9054]
[1746464546995,6.9047,144.85,144.83,6.9054]
[1746464548794,6.9047,144.85,144.82,6.9059]
[1746464549198,24.3,144.89,144.8,24.3]
[1746464549393,2.0835,144.88,144.8,24.3]
[1746464549785,26.4035,144.88,144.83,6.9054]
[1746464549993,26.4035,144.88,144.8,24.3]
[1746464550398,1.9972,144.91,144.85,6.9043]
[1746464550593,24.32,144.9,144.8,24.3]
[1746464550789,6.9038,144.87,144.8,24.3]
[1746464550997,24.32,144.9,144.8,24.3]
[1746464551294,6.9021,144.91,144.8,24.3]
[1746464551493,6.9021,144.91,144.88,6.9028]
[1746464552002,6.9011,144.93,144.84,24.32]
[1746464552194,3.9867,144.98,144.85,24.53158779]
[1746464552391,1.9868,144.98,144.85,24.53158779]
[1746464552593,1.9868,144.98,144.94,6.9001]
[1746464552797,1.9868,144.98,144.85,24.53158779]
[1746464552798,4.0248,145.0,144.91,24.32]
[1746464552998,24.32,145.0,144.97,6.8989]
[1746464553202,24.32,145.02,144.93,24.32]
[1746464553395,6.8969,145.02,144.94,24.32]
[1746464553796,24.32,145.03,144.94,24.32]
[1746464554103,4.1234,145.06,145.0,6.8974]
[1746464554302,28.4434,145.06,145.0,6.8974]
[1746464554603,6.8956,145.04,145.0,6.8974]
[1746464554806,24.32,145.06,144.98,24.32]
[1746464554997,546.78,145.08,144.99,4.1374]
[1746464555197,571.1,145.08,144.99,4.1374]
[1746464555397,571.1,145.08,145.01,6.8968]
[1746464555604,6.8952,145.05,144.99,4.1374]
[1746464555902,571.1,145.08,145.0,6.8975]
[1746464556197,6.8955,145.05,144.99,4.1374]
[1746464556392,571.1,145.08,145.02,6.8965]
[1746464556597,24.32,145.08,145.0,2.1074]
[1746464557204,6.8956,145.05,145.0,2.1074]
[1746464557505,6.8956,145.05,145.0,9.0048]
[1746464557802,6.8961,145.04,145.0,9.0048]
[1746464559503,24.32,145.08,145.0,2.1074]
[1746464560098,24.32,145.08,145.02,6.8963]
[1746464560099,6.895,145.06,145.02,6.8963]
[1746464560306,24.32,145.08,145.02,31.1963]
[1746464560510,24.32,145.08,145.02,24.3]
[1746464560705,6.8955,145.05,145.02,24.3]
[1746464563010,6.8955,145.05,145.02,31.1965]
[1746464563311,6.8955,145.05,145.02,24.3]
[1746464564509,6.8955,145.05,145.02,31.1964]
[1746464564805,4.2573,145.1,145.02,31.1964]
[1746464565013,24.36,145.09,145.02,31.1964]
[1746464565707,24.36,145.09,145.02,24.3]
[1746464566714,6.8957,145.04,145.02,24.3]
[1746464567412,6.8953,145.05,145.02,31.1966]
[1746464567719,24.36,145.09,145.02,24.3]
[1746464567907,6.8946,145.07,145.02,24.3]
[1746464568513,6.8946,145.07,145.05,6.8951]
[1746464568919,6.8946,145.07,145.02,24.3]
[1746464569421,6.8946,145.07,145.04,6.8954]
[1746464573021,6.8946,145.07,145.05,6.8951]
[1746464573223,6.8939,145.08,145.02,24.3]
[1746464573516,6.8939,145.08,145.04,6.8952]
[1746464573721,6.8939,145.08,145.02,24.3]
[1746464574514,6.8943,145.07,145.02,24.3]
[1746464575324,24.36,145.12,145.0,2.1074]
[1746464575521,32.3606031,145.11,145.01,24.36]
[1746464575822,6.8964,145.03,145.01,24.36]
[1746464576524,6.8959,145.04,145.01,24.36]
[1746464576725,24.36,145.07,145.01,31.2567]
[1746464577122,6.8956,145.05,145.01,31.2567]
[1746464577927,6.8956,145.05,145.02,6.8966]
[1746464578527,6.8957,145.04,145.01,31.2568]
[1746464579229,6.8957,145.04,145.02,6.8965]
[1746464579628,6.8957,145.04,145.01,24.36]
[1746464579825,24.36,145.07,144.97,546.26]
[1746464580133,4.1064,145.06,144.96,24.36]
[1746464580422,4.1064,145.06,144.98,6.8983]
[1746464580830,6.8975,145.0,144.98,6.8983]
[1746464581630,6.8975,145.0,144.97,6.8987]
[1746464581926,24.36,145.03,144.96,24.36]
[1746464582231,6.8983,144.99,144.96,6.8994]
[1746464582431,2.0057,145.02,144.93,24.36]
[1746464582725,24.36,145.03,144.93,24.36]
[1746464582930,24.36,145.05,144.93,24.36]
[1746464583335,6.8969,145.02,144.99,6.8977]
[1746464584029,6.8962,145.03,144.97,24.36]
[1746464584228,24.36,145.05,144.97,24.36]
[1746464584635,24.36,145.05,144.98,2.0773]
[1746464584934,24.36,145.05,144.97,24.36]
[1746464585224,6.8972,145.01,144.98,6.8981]
[1746464585531,24.36,145.05,144.97,24.36]
[1746464585833,6.8979,145.0,144.97,31.2587]
[1746464586329,6.899,144.97,144.95,6.8997]
[1746464586532,6.899,144.97,144.93,25.36]
[1746464586833,6.8998,144.96,144.93,25.36]
[1746464587028,24.36,145.01,144.93,25.36]
[1746464587732,4.2793,145.0,144.93,25.36]
[1746464588230,6.2703,145.0,144.93,1.0]
[1746464588630,6.9004,144.94,144.93,1.0]
[1746464588929,6.2703,145.0,144.93,1.0]
[1746464589434,6.9002,144.95,144.93,1.0]
[1746464591032,6.8993,144.97,144.93,1.0]
[1746464591336,6.2703,145.0,144.93,1.0]
[1746464592538,4.2793,145.0,144.93,1.0]
[1746464592833,6.8982,144.99,144.96,6.8991]
[1746464593033,4.2793,145.0,144.96,6.8991]
[1746464593227,6.8984,144.99,144.96,6.8991]
[1746464593427,6.8984,144.99,144.97,6.8989]
[1746464593632,6.8984,144.99,144.93,1.0]
[1746464593936,6.8984,144.99,144.96,6.8991]
[1746464594135,6.8984,144.99,144.93,1.0]
[1746464594338,24.36,145.03,144.98,6.8983]
[1746464594729,6.8976,145.0,144.95,24.36]
[1746464594930,24.36,145.03,144.95,24.36]
[1746464595431,6.8992,144.97,144.95,24.36]
[1746464595937,6.8987,144.98,144.93,1.0]
[1746464596139,24.36,145.03,144.96,6.8994]
[1746464596435,24.36,145.03,144.93,25.44]
[1746464596641,24.36,145.03,144.97,6.8985]
[1746464596842,24.36,145.03,144.93,25.44]
[1746464598230,24.36,145.03,144.95,6.8998]
[1746464598427,24.36,145.03,144.93,25.44]
[1746464598931,24.36,145.03,144.96,6.8991]
[1746464599233,24.36,145.03,144.95,6.8997]
[1746464600138,24.36,145.03,144.93,25.44]
[1746464600735,6.8975,145.0,144.93,25.44]
[1746464601138,6.8975,145.0,144.97,6.8986]
[1746464601338,6.8981,144.99,144.97,6.8986]
[1746464601538,6.8981,144.99,144.93,25.44]
[1746464601738,24.36,145.03,144.96,6.8993]
[1746464602339,24.36,145.03,144.93,25.44]
[1746464602340,24.36,145.03,144.97,6.8989]
[1746464602529,6.8978,145.0,144.93,25.44]
[1746464602840,24.36,145.03,144.96,6.8992]
[1746464603240,6.8985,144.98,144.96,6.8992]
[1746464603434,24.36,145.03,144.96,6.8992]
[1746464603941,6.8987,144.98,144.95,6.8997]
[1746464604842,6.899,144.97,144.95,6.8997]
[1746464605140,24.36,145.03,144.95,6.8997]
[1746464605541,6.8987,144.98,144.96,6.8994]
[1746464605735,24.36,145.03,144.93,25.44]
[1746464606138,4.2566,145.06,144.93,25.44]
[1746464606342,24.44,145.08,144.94,18.57544223]
[1746464606733,6.8949,145.06,144.94,18.57544223]
[1746464606933,6.1995,145.1,144.97,18.57544223]
[1746464607133,6.8946,145.07,144.98,30.4112]
[1746464607746,6.8946,145.07,145.04,6.8952]
[1746464608845,6.8939,145.08,145.06,6.8946]
[1746464609547,6.8935,145.09,145.06,6.8946]
[1746464612349,24.44,145.12,145.06,6.8946]
[1746464612754,24.44,145.12,145.05,6.895]
[1746464613042,6.894,145.08,145.05,6.895]
[1746464615946,6.8943,145.07,145.05,6.895]
[1746464616647,6.8939,145.08,145.05,6.895]
[1746464616952,24.44,145.12,145.05,6.895]
[1746464617147,6.8945,145.07,145.04,6.8954]
[1746464617650,6.8945,145.07,145.02,24.44]
[1746464618347,6.8939,145.08,145.05,6.8951]
[1746464618951,43.01544223,145.12,145.02,24.44]
[1746464619451,6.8954,145.05,145.02,31.3364]
[1746464619849,24.42,145.08,145.02,24.44]
[1746464620148,24.42,145.08,144.98,5.9712]
[1746464620351,4.231,145.07,145.0,24.42]
[1746464620650,6.8952,145.05,145.0,24.42]
[1746464621252,6.8952,145.05,145.02,6.8963]
[1746464621644,2.1083,145.07,145.02,6.8963]
[1746464621850,6.8957,145.04,145.02,6.8963]
[1746464622852,6.8954,145.05,145.02,6.8963]
[1746464623546,6.8954,145.05,145.03,6.896]
[1746464623849,24.42,145.1,145.0,24.42]
[1746464624049,24.42,145.1,145.03,6.8959]
[1746464624250,6.8949,145.06,145.03,6.8959]
[1746464625355,6.8949,145.06,145.04,6.8956]
[1746464625553,24.42,145.1,145.0,24.42]
[1746464625952,24.42,145.1,145.04,6.8953]
[1746464626453,13.72876469,145.11,145.04,6.8953]
[1746464626753,6.8945,145.07,145.04,6.8953]
[1746464627146,6.8939,145.08,145.05,6.8949]
[1746464627345,1098.83,145.22,145.06,24.44]
[1746464627546,24.44,145.16,145.06,26.5297]
[1746464627750,6.8925,145.11,145.08,6.8933]
[1746464628251,6.8925,145.11,145.06,26.5297]
[1746464628656,6.8928,145.1,145.08,6.8935]
[1746464628852,24.44,145.16,145.06,26.5297]
[1746464629049,2.1624,145.15,145.06,26.5297]
[1746464629248,6.8936,145.09,145.06,33.4242]
[1746464629647,6.8936,145.09,145.06,31.3345]
[1746464630147,6.8936,145.09,145.07,6.8942]
[1746464631154,6.8936,145.09,145.06,31.3345]
[1746464632253,6.8938,145.08,145.06,31.3345]
[1746464632455,2.1624,145.15,145.08,6.8935]
[1746464633651,6.8927,145.11,145.08,6.8935]
[1746464633856,6.8927,145.11,145.09,6.8933]
[1746464634053,6.8927,145.11,145.06,24.44]
[1746464634254,6.8931,145.1,145.06,24.44]
[1746464634453,6.8931,145.1,145.07,6.894]
[1746464634855,6.8931,145.1,145.07,6.8941]
[1746464635257,2.1624,145.15,145.06,24.44]
[1746464635453,20.71821636,145.15,145.06,24.44]
[1746464635756,20.71821636,145.15,145.03,26.5297]
[1746464635956,13.7829,145.13,145.03,33.4255]
[1746464636257,6.8951,145.06,145.03,33.4255]
[1746464636856,2.0989,145.11,145.03,33.4255]
[1746464637356,6.895,145.06,145.03,33.4255]
[1746464637654,4.1645,145.11,145.03,33.4255]
[1746464637854,6.8951,145.06,145.03,33.4255]
[1746464638650,6.8953,145.05,145.03,8.9855]
[1746464639457,6.8949,145.06,145.04,6.8955]
[1746464640459,2.0989,145.11,145.03,2.0897]
[1746464640853,24.44,145.12,145.03,2.0897]
[1746464641048,6.893,145.1,145.07,6.894]
[1746464641954,6.893,145.1,145.08,6.8936]
[1746464642259,6.8925,145.11,145.06,24.44]
[1746464642658,24.44,145.13,145.06,24.44]
[1746464643061,6.8926,145.11,145.08,6.8934]
[1746464643260,6.8926,145.11,145.06,24.44]
[1746464643461,2.1624,145.15,145.06,24.44]
[1746464643858,6.8921,145.12,145.09,6.8929]
[1746464644163,26.5,145.16,145.06,24.44]
[1746464644560,6.8923,145.12,145.09,6.8929]
[1746464644759,26.5,145.16,145.09,6.8929]
[1746464645056,26.5,145.16,145.08,6.8936]
[1746464645264,26.5,145.16,145.06,24.44]
[1746464645865,6.8925,145.11,145.09,6.8932]
[1746464647661,39.26581636,145.25,145.06,24.44]
[1746464647859,22.57591636,145.21,145.06,24.44]
[1746464648060,24.44,145.2,145.06,24.44]
[1746464648364,24.44,145.2,145.07,6.8941]
[1746464648665,6.8917,145.13,145.07,6.8941]
[1746464648863,24.44,145.2,145.07,6.8941]
[1746464649062,25.63942097,145.2,145.07,6.8941]
[1746464649264,25.63942097,145.2,145.09,1.0]
[1746464649767,6.8921,145.12,145.09,1.0]
[1746464650167,11.59604543,145.17,145.09,1.0]
[1746464650363,6.8927,145.11,145.09,1.0]
[1746464650560,24.44,145.16,145.09,1.0]
[1746464651064,6.8928,145.1,145.09,1.0]
[1746464657169,6.8952,145.05,145.04,28.5927]
[1746464657372,6.8952,145.05,145.04,24.38]
[1746464662579,4.121,145.1,145.01,553.0167]
[1746464662580,6.8964,145.03,145.01,553.0167]
[1746464662783,4.121,145.1,145.01,570.5]
[1746464662976,6.2141,145.1,145.01,24.38]
[1746464663277,6.8964,145.03,145.01,24.38]
[1746464663981,6.8958,145.04,145.01,24.38]
[1746464664177,24.38,145.09,145.01,24.38]
[1746464664581,6.8954,145.05,145.02,6.8964]
[1746464664780,24.38,145.09,145.01,24.38]
[1746464665087,6.8945,145.07,145.04,6.8953]
[1746464665385,24.38,145.09,145.01,24.38]
[1746464665582,6.8946,145.07,145.04,6.8953]
[1746464665887,6.8946,145.07,145.01,24.38]
[1746464666881,6.8946,145.07,145.04,6.8954]
[1746464667587,6.8946,145.07,145.05,6.8951]
[1746464670690,6.8946,145.07,145.01,24.38]
[1746464670691,2.0576,145.1,145.06,6.8943]
[1746464670992,24.4,145.12,145.05,24.4]
[1746464671189,6.8921,145.12,145.05,24.4]
[1746464671494,24.4,145.14,145.05,35.99604543]
[1746464671689,24.4,145.14,145.06,2.0408]
[1746464671891,24.4,145.14,145.11,6.8921]
[1746464672086,24.4,145.14,145.09,24.4]
[1746464673297,6.8917,145.13,145.1,6.8925]
[1746464673894,6.8918,145.12,145.1,6.8925]
[1746464674094,6.8918,145.12,145.09,31.293]
[1746464674899,6.8917,145.13,145.1,6.8928]
[1746464675293,572.311,145.16,145.09,24.4]
[1746464675494,6.8913,145.14,145.11,6.8921]
[1746464675692,6.8913,145.14,145.09,24.4]
[1746464675894,6.8914,145.13,145.1,6.8925]
[1746464678099,6.8919,145.12,145.1,6.8925]
[1746464678601,26.351,145.16,145.1,6.8925]
[1746464678900,6.8916,145.13,145.1,6.8925]
[1746464679904,6.8916,145.13,145.11,6.8923]
[1746464681397,6.8916,145.13,145.1,6.8926]
[1746464682805,6.8916,145.13,145.11,6.8921]
[1746464683104,6.8911,145.14,145.11,6.8921]
[1746464683301,6.8911,145.14,145.09,24.4]
[1746464683805,6.8914,145.13,145.09,24.4]
[1746464684505,6.8914,145.13,145.11,6.8921]
[1746464687208,6.8914,145.13,145.1,6.8926]
[1746464688108,6.8922,145.12,145.09,31.293]
[1746464688307,6.8922,145.12,145.09,24.4]
[1746464688811,6.8922,145.12,145.1,6.8924]
[1746464689014,24.38,145.16,145.09,24.4]
[1746464689313,13.55954543,145.18,145.11,6.8921]
[1746464689511,6.8915,145.13,145.11,6.8921]
[1746464691710,6.8911,145.14,145.12,6.8918]
[1746464692110,6.8911,145.14,145.09,24.4]
[1746464692319,6.8911,145.14,145.11,6.892]
[1746464692714,6.8914,145.13,145.11,6.892]
[1746464694015,6.891,145.14,145.12,6.8918]
[1746464695011,26.2435,145.18,145.13,6.8911]
[1746464695403,6.8905,145.15,145.13,6.8911]
[1746464696211,26.3889,145.2,145.1,1.9479]
[1746464696411,26.3889,145.2,145.1,4.0431]
[1746464697110,6.8907,145.15,145.1,4.0431]
[1746464697306,26.3889,145.2,145.1,4.0431]
[1746464697510,6.891,145.14,145.12,6.8916]
[1746464697712,11.59604543,145.18,145.1,4.0431]
[1746464697916,11.59604543,145.18,145.1,1.9479]
[1746464698215,6.8921,145.12,145.1,6.8926]
[1746464698416,11.59604543,145.18,145.09,24.4]
[1746464698815,6.8926,145.11,145.09,31.293]
[1746464699216,24.28,145.16,145.09,24.4]
[1746464699414,6.8921,145.12,145.1,6.8928]
[1746464699615,6.8921,145.12,145.09,24.4]
[1746464700018,6.8921,145.12,145.09,31.2928]
[1746464700323,6.8923,145.11,145.09,31.2928]
[1746464700720,24.28,145.16,145.1,6.8928]
[1746464700915,6.8921,145.12,145.1,6.8928]
[1746464701320,6.8921,145.12,145.09,31.293]
[1746464701518,6.8921,145.12,145.09,24.4]
[1746464701921,6.8921,145.12,145.1,6.8927]
[1746464703617,6.8916,145.13,145.1,6.8927]
[1746464704424,6.8919,145.12,145.1,6.8927]